Cogmind - Beta 15 @@@ ROGUE MODE // 2025.05.30 @ 23:36:53 Player: nado Result: Destroyed by D-53 Grenadier with Mini Grenade Launcher Performance ------------- Evolutions (0) 0 Regions Visited (2) 400 Robots Destroyed (30) 150 Value Destroyed (648) 648 Prototype IDs (0) 0 Alien Tech Used (0) 0 Bonus (0) 0 TOTAL SCORE: 1198 Bonus ------- None Cogmind --------- Core Integrity 0/250 Matter 240/300 Energy 100/100 System Corruption 0% Temperature Cool (0) Movement Core (1400) Ox27 Location -10/Mines Parts ------- > --- POWER (1) -------- (None) > --- PROPULSION (2) --- (None) > --- UTILITY (2) ------ Huge Storage Unit > --- WEAPON (2) ------- Light Assault Rifle Light Assault Rifle > --- INVENTORY (25) --- Light Nuclear Core Light Nuclear Core Light Treads Light Treads Improved Aluminum Leg Large Storage Unit High-capacity Matter Pod (200) Seismic Detector Improved Targeting Computer Improved Targeting Computer Light Armor Plating Particle Gun Particle Gun Grenade Launcher Peak State ------------ > --- POWER ------------ Ion Engine > --- PROPULSION ------- Improved Aluminum Leg Improved Aluminum Leg > --- UTILITY ---------- Heat Sink Large Storage Unit > --- WEAPON ----------- Particle Gun Particle Gun > --- INVENTORY -------- Light Nuclear Core Light Nuclear Core Light Treads Light Treads Improved Aluminum Leg Small Storage Unit High-capacity Matter Pod Seismic Detector Improved Targeting Computer Improved Targeting Computer Light Armor Plating Light Assault Rifle Light Assault Rifle Grenade Launcher [Rating: 13] Favorites ----------- Power Ion Engine Engine Ion Engine Propulsion Improved Aluminum Leg Leg Improved Aluminum Leg Utility Heat Sink Device Heat Sink Storage Large Storage Unit Protection Light Armor Plating Weapon Particle Gun Energy Gun Particle Gun Ballistic Gun Light Assault Rifle Launcher Grenade Launcher Build | -11 -10 -10 ------- Run | Yrd Mat Min Slots Evolved . | . . . Power . | . . . Propulsion . | . . . Utility . | . . . Weapon . | . . . Parts Attached 17 | . 16 1 Power 3 | . 3 . Engine 3 | . 3 . Core . | . . . Reactor . | . . . Propulsion 4 | . 4 . Treads . | . . . Leg 4 | . 4 . Wheel . | . . . Hover . | . . . Flight . | . . . Utility 4 | . 4 . Device 1 | . 1 . Storage 2 | . 2 . Processor . | . . . Hackware . | . . . Protection 1 | . 1 . Artifact . | . . . Weapon 6 | . 5 1 Energy Gun 3 | . 3 . Energy Cannon . | . . . Ballistic Gun 2 | . 2 . Ballistic Cannon . | . . . Launcher 1 | . . 1 Special Weapon . | . . . Impact Weapon . | . . . Slashing Weapon . | . . . Piercing Weapon . | . . . Special Melee Weapon . | . . . Unidentified Prototypes . | . . . Parts Lost 9 | . 5 4 Power 3 | . 2 1 Propulsion 3 | . 1 2 Utility 2 | . 1 1 Weapon 1 | . 1 . Highest Loss Streak 4 | . 2 4 To Critical Strikes . | . . . Average Backups 13 | 6 13 14 Power 2 | 1 2 2 Propulsion 3 | 4 3 3 Utility 4 | . 4 6 Weapon 2 | 1 2 3 Tool/Special . | . . . Unused Backups 18 | . 8 10 Power 3 | . 1 2 Propulsion 7 | . 4 3 Utility 6 | . 1 5 Weapon 2 | . 2 . Tool/Special . | . . . Average Slot Usage (%) 97 | . 97 100 Engine 13 | . 13 14 Leg 27 | . 27 28 Device 11 | . 11 . Storage 14 | . 14 14 Protection 1 | . . 14 Energy Gun 25 | . 26 . Ballistic Gun 2 | . 1 24 Peak Build Rating 13 | 6 13 11 Average Rating 10 | 6 10 10 On Entrance 7 | 6 6 11 Naked Turns . | . . . Heaviest Build 92 | 11 92 90 Greatest Support 26 | 20 26 26 Greatest Overweight (x) 27 | . 3 27 Average Overweight (x) 1 | . 1 6 Largest Inventory Capacity 25 | 8 25 25 Average Capacity 17 | 8 17 25 Most Carried 15 | 7 15 14 Average Carried 13 | 6 13 14 Final Capacity 25 | 8 25 25 Final Carried 14 | 7 14 14 Class Distribution -------------------- 100% | Mutant Dominant Class ---------------- Mutant | -10/Materials Mutant | -10/Mines Resources | -11 -10 -10 ----------- Run | Yrd Mat Min Matter Collected 545 | 200 345 . Remotely . | . . . Salvage Created 933 | 74 848 11 Parts 34 | 2 32 . Haulers Intercepted 2 | . 2 . Recyclers Shooed 3 | . 3 . Parts Field Recycled . | . . . Retrieved Matter . | . . . Parts Self-Destructed . | . . . Prevented . | . . . Kills | -11 -10 -10 ------- Run | Yrd Mat Min Combat Hostiles Destroyed 33 | . 21 12 Guns 21 | . 21 . AOE 12 | . . 12 Classes Destroyed 9 | 2 6 1 Worker 1 | . 1 . Builder 1 | . 1 . Tunneler 2 | 1 1 . Hauler 2 | . 2 . Recycler 2 | 1 1 . Watcher 1 | . 1 . Swarmer 6 | . 6 . Grunt 15 | . 15 . Assembled 12 | . . 12 Best Kill Streak 12 | 2 4 12 Combat Bots Only 12 | . 3 12 Max Kills in Single Turn 4 | 1 2 4 Gunslinging . | . . . Exploded 4 | . . 4 Melee . | . . . Uniques/NPCs Destroyed . | . . . Combat | -11 -10 -10 -------- Run | Yrd Mat Min Hostile Shots Fired 150 | . 128 22 Missed 34 | . 28 6 Hits 116 | . 100 16 Melee 1 | . . 1 Projectile 115 | . 100 15 AOE 8 | . . 8 Critical Strikes 2 | . 2 . Damage Taken 1505 | . 1046 459 Core 257 | . 152 105 Absorbed by Shields . | . . . Regen/Repaired (Parts) 82 | . 82 . Core Remaining (%) 100 | 100 . . Volleys Fired 119 | 7 106 6 Largest 2 | 2 2 1 Hottest 130 | 90 130 30 Shots Fired 228 | 14 208 6 Gun 222 | 14 208 . Cannon . | . . . Launcher 6 | . . 6 Special . | . . . Kinetic 20 | . 20 . Thermal 202 | 14 188 . Explosive 6 | . . 6 Electromagnetic . | . . . Robot Hit Streak 22 | 12 22 11 Robot Miss Streak 4 | . 4 1 Penetration Max . | . . . Secondary Targets 2 | . 2 . Max Gunslinging Chain 1 | . 1 . Shots Hit Robots 165 | 12 151 2 Core Hits 79 | 3 43 33 Critical Kills . | . . . Critical Parts Destroyed . | . . . Critical Strikes 6 | . 6 . Burn 6 | . 6 . Melee Attacks . | . . . Impact . | . . . Slashing . | . . . Piercing . | . . . Sneak Attacks . | . . . Combat Hostiles . | . . . Follow-up Attacks . | . . . Damage Inflicted 3072 | 144 2144 784 Guns 2204 | 144 2060 . Cannons . | . . . Explosions 784 | . . 784 Melee . | . . . Ramming 84 | . 84 . Kinetic 151 | . 151 . Thermal 2053 | 144 1909 . Explosive 784 | . . 784 Electromagnetic . | . . . Impact . | . . . Slashing . | . . . Piercing . | . . . Highest Corruption . | . . . Average Corruption . | . . . Corruption Purged . | . . . Corruption Blocked . | . . . Overload Shots . | . . . Overflow Damage 32 | . . 32 Projectiles . | . . . Explosions 32 | . . 32 Melee . | . . . Knockbacks . | . . . Impact . | . . . Kinetic . | . . . Secondary . | . . . Self-Inflicted Damage 43 | . . 43 Shots 2 | . . 2 Rammed . | . . . Targets Rammed 14 | . 14 . Kicked 14 | . 14 . Crushed . | . . . Highest Temperature 270 | 210 270 60 Average Temperature 91 | 106 91 34 Received Heat Transfer 560 | . 480 80 Effects 5 | . 5 . Energy Bleed 2 | . 2 . Interference 3 | . 3 . Siege Activations . | . . . Martial Activations . | . . . Shielding Activations . | . . . Robots Disrupted . | . . . Combat Hostiles . | . . . Robots Corrupted . | . . . Combat Hostiles . | . . . Parts Fried . | . . . Impact Corruptions . | . . . Robots Melted . | . . . Combat Hostiles . | . . . Parts Melted 13 | . 13 . Heat Transferred 5657 | 384 5273 . Parts Sabotaged . | . . . Parts Stolen . | . . . Parts Stripped . | . . . Power Chain Reactions . | . . . Alert | -11 -10 -10 ------- Run | Yrd Mat Min Maximum Alert Level . | . . . Low Security (%) 100 | 100 100 100 Level 1 . | . . . Level 2 . | . . . Level 3 . | . . . Level 4 . | . . . Level 5 . | . . . High Security . | . . . Max Security . | . . . Peak Influence 116 | 5 116 49 Initial 39 | . 3 39 Average 36 | 2 36 39 Influence Increases 692 | 10 662 20 Destroy 0b10 Robot/C 420 | . 420 . Destroy 0b10 Robot/NC 45 | 10 35 . Destroy Leader 106 | . 106 . Successful Hack 24 | . 24 . Select Force Hacks 30 | . 30 . Destroy Structure 22 | . 2 20 Lose Combat Pursuer 45 | . 45 . Influence Decreases 683 | 5 567 111 Entered New Map 63 | . 2 61 Time Decay 530 | 5 515 10 Lost Part 90 | . 50 40 Squads Dispatched 6 | . 6 . Investigation 5 | . 5 . Extermination . | . . . Reinforcement 1 | . 1 . Assault . | . . . Garrison . | . . . Intercept . | . . . Searches Triggered . | . . . Construction Impeded . | . . . Haulers Reinforced . | . . . Active Scanning Responses . | . . . Cargo Convoy Interrupts . | . . . Stealth | -11 -10 -10 --------- Run | Yrd Mat Min Distress Signals 2 | . 2 . Communications Jammed . | . . . Distress Signals . | . . . Times Spotted 57 | . 36 21 Peak Tracking Total 19 | . 4 19 Tactical Retreats 3 | . 3 . Traps | -11 -10 -10 ------- Run | Yrd Mat Min Traps Triggered 1 | . 1 . Indirectly . | . . . Trap Hack Attempts . | . . . Triggered . | . . . Disarmed . | . . . Reprogrammed . | . . . Reused . | . . . Traps Extracted . | . . . Installed . | . . . Triggered . | . . . Machines | -11 -10 -10 ---------- Run | Yrd Mat Min Machines Disabled . | . . . Max in Single Turn . | . . . Machines Repaired . | . . . Machines Dismantled . | . . . Machines Sabotaged . | . . . Overloaded Fab Kills . | . . . Hacking | -11 -10 -10 --------- Run | Yrd Mat Min Machines Accessed 9 | . 9 . Terminals 7 | . 7 . Fabricators . | . . . Repair Stations 1 | . 1 . Recycling Units 1 | . 1 . Scanalyzers . | . . . Garrison Access . | . . . Total Hacks 27 | . 27 . Successful 12 | . 12 . Failed 14 | . 14 . Catastrophic . | . . . Database Lockouts 1 | . 1 . Manual 23 | . 23 . Terminals 23 | . 23 . Fabricators . | . . . Repair Stations 3 | . 3 . Recycling Units 1 | . 1 . Scanalyzers . | . . . Garrison Access . | . . . Terminal Hacks 2 | . 2 . Robot Analysis 2 | . 2 . Fabricator Hacks . | . . . Repair Station Hacks 2 | . 2 . Scan Component 1 | . 1 . Repair 1 | . 1 . Recycling Unit Hacks . | . . . Scanalyzer . | . . . Garrison Access Hacks . | . . . Unauthorized Hacks 8 | . 8 . Terminals 7 | . 7 . Skim 7 | . 7 . Fabricators . | . . . Repair Stations . | . . . Recycling Units 1 | . 1 . Tunnel 1 | . 1 . Scanalyzers . | . . . Garrison Access . | . . . Data Cores Recovered . | . . . Used . | . . . Hacking Detections 7 | . 7 . Full Trace Events 3 | . 3 . Feedback Events . | . . . Feedback Blocked . | . . . Robot Schematics Acquired . | . . . Robots Built . | . . . Authchips . | . . . Time . | . . . Total Robot Build Rating . | . . . Part Schematics Acquired . | . . . Parts Built . | . . . Authchips . | . . . Time . | . . . Total Part Build Rating . | . . . Parts Repaired 1 | . 1 . Time 26 | . 26 . Parts Recycled . | . . . Recycled Matter . | . . . Retrieved Matter . | . . . Retrieved Components . | . . . Parts Scanalyzed . | . . . Part Schematics Acquired . | . . . Parts Damaged . | . . . Bothacking | -11 -10 -10 ------------ Run | Yrd Mat Min Used RIF Installer . | . . . Robots Hacked . | . . . Non-combat . | . . . Combat . | . . . Robot Hacks Applied . | . . . Relay Couplers Released . | . . . Fabnet Peak Effective % . | . . . Robots Rewired . | . . . Allies Hacked . | . . . Hacks Repelled . | . . . Allies | -11 -10 -10 -------- Run | Yrd Mat Min Total Allies . | . . . Largest Group . | . . . Highest-Rated Group . | . . . Highest-Rated Ally . | . . . Total Orders . | . . . Ally Attacks . | . . . Total Damage . | . . . Kills . | . . . Allies Corrupted . | . . . Allies Melted 1 | . . 1 Intel | -11 -10 -10 ------- Run | Yrd Mat Min Active Infowar (turns) . | . . . Robot Analysis Total 2 | . 2 . Derelict Logs Recovered . | . . . Drone Launches . | . . . Drone Recoveries . | . . . Exploration | -11 -10 -10 ------------- Run | Yrd Mat Min Turns Passed 2938 | 36 2865 37 Spaces Moved 1023 | 12 1004 7 Core 1 | . . 1 Treads . | . . . Legs 1022 | 12 1004 6 Wheels . | . . . Hover . | . . . Flight . | . . . Fastest Speed 120 | 120 120 330 Average Speed 208 | 120 207 482 Slowest Speed 1400 | 120 330 1400 Overloaded Moves . | . . . Propulsion Burnouts . | . . . Robots Hopped . | . . . Potential Cave-ins . | . . . Cave-ins Triggered . | . . . Exploration Rate (%) 35 | 2 99 6 Regions Visited 2 Branch Regions 1 Pre-discovered Areas 1 | . 1 . Known Exits Taken . | . . . Unknown Exits Taken 2 | 1 1 . Scrap Searched . | . . . Spaces Dug . | . . . Terrain Destroyed 23 | . . 23 Melee . | . . . Projectile . | . . . AOE 23 | . . 23 Terrain Rammed . | . . . Walls Destroyed . | . . . Machines Disabled . | . . . Actions | -11 -10 -10 --------- Run | Yrd Mat Min Total 1602 | 19 1568 15 Wait 403 | . 403 . Move 1021 | 11 1003 7 Hop . | . . . Pick Up 15 | 1 14 . Fast Attach 4 | . 4 . Attach 5 | . 5 . Detach 1 | . 1 . Swap 10 | . 8 2 Drop 10 | . 10 . Fire 119 | 7 106 6 Melee . | . . . Ram . | . . . Kick 14 | . 14 . Crush . | . . . Escape Stasis . | . . . Rewire . | . . . Trap . | . . . Miscellaneous . | . . . Route ------- -11/Scrapyard -10/Materials (discovered 6 exits: [*Mat x3] / [*Min x2] / [*Sub]) -10/Mines History --------- Turn | Location | Event 1 | -11/Scrapyard | Discovered new exit (range 3) 37 | -11/Scrapyard | Entered Materials 90 | -10/Materials | Discovered new exit (range 8) 186 | -10/Materials | Discovered new exit (range 8) 258 | -10/Materials | Discovered new exit (range 16) 311 | -10/Materials | Build established: Mutant 1067 | -10/Materials | Repaired Aluminum Leg 1315 | -10/Materials | Central database locked down 1448 | -10/Materials | Discovered new exit (range 14) 1695 | -10/Materials | Discovered new exit (range 15) 2319 | -10/Materials | Discovered new exit (range 16) 2449 | -10/Materials | Core integrity fell below 50% 2902 | -10/Materials | Entered Mines 2903 | -10/Mines | Assembled infested the area 2908 | -10/Mines | Assisted by a Guerilla fighting off Assembled 2934 | -10/Mines | Core integrity fell below 20% 2939 | -10/Mines | Destroyed by D-53 Grenadier with Mini Grenade Launcher Last Messages --------------- 02925_ The unstable cave ceiling collapses. 02925_ as-68762 destroyed. 02925_ as-77068 destroyed. 02925_ Destroyed Asb. Hover Unit. 02927_ as-37128 destroyed. 02927_ as-86370 destroyed. 02927_ as-71480 destroyed. 02927_ as-32371 destroyed. 02927_ as-68999 destroyed. 02927_ as-24956 destroyed. 02927_ as-94309 destroyed. 02927_ as-43282 destroyed. 02929_ as-65619 destroyed. 02933_ Lgt. Armor Plating destroyed. 02935_ The unstable cave ceiling collapses. 02935_ Ion Engine destroyed. 02936_ The unstable cave ceiling collapses. 02937_ Imp. Aluminum Leg destroyed. 02938_ The unstable cave ceiling collapses. 02938_ U-05 Engineer builds a Wall. Map ----- +----------------------------------------------------+ | ????????????????????????????????????????????????? | | ????????????????????????????????????????????????? | | ????????????????????????????????????????????????? | | ????????????????????????????????????????????????? | | ????????????????????????????????????????????????? | | ????????????????????????????????????????????????? | | ????????????????????????????????????????????????? | | ????????????????????????????????????????????????? | | ????????????????????????????????????????????????? | | ????????????????????????????????????????????????? | | ????????????????????????????????????????????????? | | ????????????????????????????????????????????????? | | ????????????????????????????????????????????????? | | ????????????????????????????????????????????????? | | ????????????????????????????????????????????????? | | ????????????????????????????????????????????????? | | ????????????????????????????????????????????????? | | ?????????????????????####???????????????????????? | | ????????????????????## #???????????????????????? | | ???????????????????## #####???##??????????????? | | ???????????????????# ##? ???????????????? | | ???????????????????## # #????????????????? | | ???????????????????# #????????????????? | | ???????????????????# # # #????????????????? | | ???????????????????# u#????????????????? | | ???????????????????# @ #????????????????? | | ???????????????????## d #??????????????? | | ????????????????????## d #??????????????? | | ?????????????????????# #??????????????? | | ?????????????????????## #????????????? | | ??????????????????????## #????????????? | | ???????????????????????# #???????????? | | ???????????????????????# # #???????????? | | ???????????????????????### ## % ;#??????????? | | ??????????????????????????##?# ##??????????? | | ??????????????????????????????# #???????????? | | ??????????????????????????????? ???????????? | | ????????????????????????????????< ?????????????? | | ????????????????????????????????????????????????? | | ????????????????????????????????????????????????? | | ????????????????????????????????????????????????? | | ????????????????????????????????????????????????? | | ????????????????????????????????????????????????? | | ????????????????????????????????????????????????? | | ????????????????????????????????????????????????? | | ????????????????????????????????????????????????? | | ????????????????????????????????????????????????? | | ????????????????????????????????????????????????? | | ????????????????????????????????????????????????? | | ????????????????????????????????????????????????? | +----------------------------------------------------+ Best States ------------- Heat Dissipation 35 Energy Generation 10 Energy Capacity 250 Matter Stores 300 Matter Capacity 300 Sight Range 16 Terrain Scan Density 10 Armor Coverage 150 Evasion (%) 55 Item Schematics ----------------- None Robot Schematics ------------------ None Fabricated ------------ Nothing Repaired ---------- Aluminum Leg | 8% | -10/Materials Alien Tech Used ----------------- None Achievements -------------- None Challenges ------------ None Game ------ Seed CryofiberFusionDriveblaster Manual? 0 Play Time 00:22:04 Cumulative 144.6 hours Start 2025.05.30 @ 22:41:19 End 2025.05.30 @ 23:36:53 Sessions 1 Manual Loads 0 Difficulty Rogue Special Mode None Game No. 75 Rogue 75 Adventurer 0 Explorer 0 Win Type - Total 4 Types 3/0/1/0/0/0/0/0/0/0 Lore% 48 Gallery% 41 Achievement% 44 Wizard Run 0 Options --------- Layout 0 ASCII 0 Keyboard 1 Movement Vi Keybinds 0 Fullscreen 2 Font 24/Terminus Map View 76x50 Zoom Use 0% Tactical HUD 1 Map Filters NONE Filters NONE Steam 1 RUN: ca6c92cb-00e3-48e8-94eb-8495fe229116